Cogmind - Beta 17.1 @@@ ROGUE MODE // 2026.09.16 @ 02:52:05 Player: Kite Result: Self-destructed Performance ------------- Evolutions (0) 0 Regions Visited (4) 800 Robots Destroyed (14) 70 Value Destroyed (209) 209 Prototype IDs (0) 0 Alien Tech Used (0) 0 Bonus (0) 0 TOTAL SCORE: 1079 Bonus ------- None Cogmind --------- Core Integrity 226/250 Matter 186/300 Energy 100/100 System Corruption 0% Temperature Cool (0) Movement Treading (480) Ox4 Location -9/Mines Parts ------- > --- POWER (1) -------- (None) > --- PROPULSION (2) --- Light Treads > --- UTILITY (2) ------ Heat Sink Huge Storage Unit > --- WEAPON (2) ------- Medium Laser > --- INVENTORY (25) --- Ion Engine Aluminum Leg Aluminum Leg High-capacity Storage Unit Large Battery (200) Medium Laser Small Laser Battle Cannon Peak State ------------ > --- POWER ------------ Ion Engine > --- PROPULSION ------- Light Treads Light Treads > --- UTILITY ---------- Heat Sink Small Storage Unit > --- WEAPON ----------- Medium Laser Small Laser > --- INVENTORY -------- Ion Engine Aluminum Leg Aluminum Leg Large Battery Medium Laser Small Laser Battle Cannon Rocket Launcher [Rating: 8] Favorites ----------- Power Ion Engine Engine Ion Engine Propulsion Light Treads Treads Light Treads Utility Heat Sink Device Heat Sink Storage Small Storage Unit Weapon Medium Laser Energy Gun Medium Laser Launcher Rocket Launcher Build | -11 -10 -10 -10 -9 ------- Run | Yrd Mat Min Exi Min Slots Evolved . | . . . . . Power . | . . . . . Propulsion . | . . . . . Utility . | . . . . . Weapon . | . . . . . Parts Attached 11 | 6 1 1 2 1 Power 1 | 1 . . . . Engine 1 | 1 . . . . Core . | . . . . . Reactor . | . . . . . Propulsion 2 | 2 . . . . Treads 2 | 2 . . . . Leg . | . . . . . Wheel . | . . . . . Hover . | . . . . . Flight . | . . . . . Utility 5 | 1 1 1 2 . Device 1 | . 1 . . . Storage 4 | 1 . 1 2 . Processor . | . . . . . Hackware . | . . . . . Protection . | . . . . . Artifact . | . . . . . Weapon 3 | 2 . . . 1 Energy Gun 2 | 2 . . . . Energy Cannon . | . . . . . Ballistic Gun . | . . . . . Ballistic Cannon . | . . . . . Launcher 1 | . . . . 1 Special Weapon . | . . . . . Impact Weapon . | . . . . . Slashing Weapon . | . . . . . Piercing Weapon . | . . . . . Special Melee Weapon . | . . . . . Unidentified Prototypes . | . . . . . Parts Lost 3 | . . . . 3 Power 1 | . . . . 1 Propulsion 1 | . . . . 1 Utility . | . . . . . Weapon 1 | . . . . 1 Highest Loss Streak 3 | . . . . 3 To Critical Strikes . | . . . . . Average Backups 7 | 1 5 7 8 8 Power . | . 1 1 1 1 Propulsion 1 | . 2 2 2 2 Utility 1 | . . 1 2 2 Weapon 2 | . 1 3 3 3 Tool/Special . | . . . . . Unused Backups 8 | . . 1 1 6 Power 1 | . . . . 1 Propulsion 2 | . . . . 2 Utility 2 | . . . 1 1 Weapon 3 | . . 1 . 2 Tool/Special . | . . . . . Average Slot Usage (%) 98 | . 91 100 100 100 Engine 14 | . 14 14 14 14 Treads 28 | . 28 28 28 28 Device 12 | . 6 14 14 14 Storage 14 | . 14 14 14 14 Energy Gun 27 | . 28 28 28 22 Peak Build Rating 8 | 6 7 8 8 8 Average Rating 7 | 4 6 7 8 7 On Entrance 5 | . 6 7 8 8 Avg Prop Armor Cover (%) . | . . . . . Naked Turns . | . . . . . Heaviest Build 89 | 13 14 19 89 89 Greatest Support 40 | 40 40 40 40 40 Greatest Overweight (x) 2 | . . . 2 2 Average Overweight (x) . | . . . . 2 Largest Inventory Capacity 25 | 8 8 10 25 25 Average Capacity 10 | 6 8 8 14 25 Most Carried 10 | 4 6 8 10 8 Average Carried 7 | 1 5 7 8 8 Final Capacity 25 | 8 8 10 25 25 Final Carried 8 | 4 6 8 8 8 Class Distribution -------------------- 100% | Mutant Dominant Class ---------------- Mutant | -10/Materials Mutant | -10/Mines Mutant | -10/Exiles Mutant | -9/Mines Resources | -11 -10 -10 -10 -9 ----------- Run | Yrd Mat Min Exi Min Matter Collected 280 | 30 132 118 . . Remotely . | . . . . . Salvage Created 288 | . 132 144 . 12 Parts 22 | . 8 14 . . Haulers Intercepted . | . . . . . Recyclers Shooed . | . . . . . Parts Field Recycled . | . . . . . Retrieved Matter . | . . . . . Parts Self-Destructed . | . . . . . Prevented . | . . . . . Parts Restored . | . . . . . Kills | -11 -10 -10 -10 -9 ------- Run | Yrd Mat Min Exi Min Combat Hostiles Destroyed 24 | . 3 9 . 12 Guns 12 | . 3 9 . . AOE 12 | . . . . 12 Classes Destroyed 5 | . 2 2 . 1 Worker 1 | . . 1 . . Watcher 1 | . 1 . . . Swarmer 9 | . . 9 . . Grunt 3 | . 3 . . . Assembled 12 | . . . . 12 Best Kill Streak 12 | . 2 4 . 12 Combat Bots Only 12 | . 2 3 . 12 Max Kills in Single Turn 3 | . 1 2 . 3 Gunslinging 1 | . . 1 . . Exploded 3 | . . . . 3 Melee . | . . . . . Uniques/NPCs Destroyed . | . . . . . Combat | -11 -10 -10 -10 -9 -------- Run | Yrd Mat Min Exi Min Hostile Shots Fired 65 | . 13 34 . 18 Missed 15 | . 5 5 . 5 Hits 50 | . 8 29 . 13 Melee 1 | . . . . 1 Projectile 49 | . 8 29 . 12 Critical Strikes 1 | . . . . 1 Damage Taken 585 | . 88 214 . 283 Core 24 | . 12 12 . . Absorbed by Shields . | . . . . . Core Remaining (%) 100 | 100 . . . . Volleys Fired 38 | . 11 16 . 11 Largest 2 | . 2 2 . 2 Hottest 90 | . 90 90 . 90 Shots Fired 67 | . 22 32 . 13 Gun 58 | . 22 32 . 4 Cannon . | . . . . . Launcher 9 | . . . . 9 Special . | . . . . . Kinetic . | . . . . . Thermal 58 | . 22 32 . 4 Explosive 9 | . . . . 9 Electromagnetic . | . . . . . Robot Hit Streak 4 | . 4 4 . 2 Robot Miss Streak 5 | . 4 3 . 5 Penetration Max . | . . . . . Secondary Targets 2 | . . 2 . . Max Gunslinging Chain 1 | . . 1 . . Shots Hit Robots 33 | . 12 18 . 3 Core Hits 43 | . 7 10 . 26 Critical Kills . | . . . . . Critical Parts Destroyed . | . . . . . Critical Strikes 1 | . . 1 . . Burn 1 | . . 1 . . Melee Attacks . | . . . . . Impact . | . . . . . Slashing . | . . . . . Piercing . | . . . . . Sneak Attacks . | . . . . . Combat Hostiles . | . . . . . Follow-up Attacks . | . . . . . Damage Inflicted 1145 | . 159 223 . 763 Guns 394 | . 159 223 . 12 Cannons . | . . . . . Explosions 751 | . . . . 751 Melee . | . . . . . Ramming . | . . . . . Kinetic . | . . . . . Thermal 394 | . 159 223 . 12 Explosive 751 | . . . . 751 Electromagnetic . | . . . . . Impact . | . . . . . Slashing . | . . . . . Piercing . | . . . . . Highest Corruption . | . . . . . Average Corruption . | . . . . . Corruption Purged . | . . . . . Corruption Blocked . | . . . . . Overload Shots . | . . . . . Overflow Damage 32 | . . . . 32 Projectiles . | . . . . . Explosions 32 | . . . . 32 Melee . | . . . . . Knockbacks . | . . . . . Impact . | . . . . . Kinetic . | . . . . . Secondary . | . . . . . Self-Inflicted Damage 77 | . . . . 77 Shots 2 | . . . . 2 Rammed . | . . . . . Targets Rammed . | . . . . . Kicked . | . . . . . Crushed . | . . . . . Highest Temperature 240 | . 240 . . . Average Temperature 99 | . 99 . . . Received Heat Transfer 48 | . 48 . . . Siege Activations . | . . . . . Martial Activations . | . . . . . Shielding Activations . | . . . . . Robots Disrupted . | . . . . . Combat Hostiles . | . . . . . Robots Corrupted . | . . . . . Combat Hostiles . | . . . . . Parts Fried . | . . . . . Impact Corruptions . | . . . . . Robots Melted . | . . . . . Combat Hostiles . | . . . . . Parts Melted . | . . . . . Heat Transferred 1139 | . 421 681 . 37 Parts Sabotaged . | . . . . . Parts Stolen . | . . . . . Parts Stripped . | . . . . . Power Chain Reactions . | . . . . . Alert | -11 -10 -10 -10 -9 ------- Run | Yrd Mat Min Exi Min Maximum Alert Level . | . . . . . Low Security (%) 100 | 100 100 100 . 100 Level 1 . | . . . . . Level 2 . | . . . . . Level 3 . | . . . . . Level 4 . | . . . . . Level 5 . | . . . . . High Security . | . . . . . Max Security . | . . . . . Peak Influence 70 | . 50 70 . 38 Initial . | . . . . . Average 17 | . 13 19 . 9 Influence Increases 358 | . 94 215 . 49 Destroy 0b10 Robot/C 240 | . 60 180 . . Destroy 0b10 Robot/NC 10 | . 5 5 . . Destroy Leader 52 | . 22 30 . . Successful Hack 7 | . 7 . . . Destroy Structure 49 | . . . . 49 Influence Decreases 349 | . 94 203 12 40 Entered New Map 12 | . . . 12 . Time Decay 307 | . 94 203 . 10 Lost Part 30 | . . . . 30 Squads Dispatched 2 | . 2 . . . Investigation 1 | . 1 . . . Extermination . | . . . . . Reinforcement 1 | . 1 . . . Assault . | . . . . . Garrison . | . . . . . Intercept . | . . . . . Searches Triggered . | . . . . . Construction Impeded . | . . . . . Haulers Reinforced . | . . . . . Active Scanning Responses . | . . . . . Cargo Convoy Interrupts . | . . . . . Stealth | -11 -10 -10 -10 -9 --------- Run | Yrd Mat Min Exi Min Distress Signals . | . . . . . Communications Jammed . | . . . . . Distress Signals . | . . . . . Times Spotted 34 | . 6 8 . 20 Peak Tracking Total 13 | . 2 3 . 13 Tactical Retreats . | . . . . . Traps | -11 -10 -10 -10 -9 ------- Run | Yrd Mat Min Exi Min Traps Triggered . | . . . . . Indirectly . | . . . . . Trap Hack Attempts . | . . . . . Triggered . | . . . . . Disarmed . | . . . . . Reprogrammed . | . . . . . Reused . | . . . . . Traps Extracted . | . . . . . Installed . | . . . . . Triggered . | . . . . . Machines | -11 -10 -10 -10 -9 ---------- Run | Yrd Mat Min Exi Min Machines Disabled . | . . . . . Max in Single Turn . | . . . . . Machines Repaired . | . . . . . Machines Dismantled . | . . . . . Machines Sabotaged . | . . . . . Overloaded Fab Kills . | . . . . . Hacking | -11 -10 -10 -10 -9 --------- Run | Yrd Mat Min Exi Min Machines Accessed 2 | . 1 . 1 . Terminals 1 | . 1 . . . Fabricators . | . . . . . Repair Stations . | . . . . . Recycling Units . | . . . . . Scanalyzers . | . . . . . Garrison Access . | . . . . . Total Hacks 8 | . 4 . 4 . Successful 5 | . 1 . 4 . Failed 3 | . 3 . . . Catastrophic 1 | . 1 . . . Database Lockouts . | . . . . . Manual 4 | . 4 . . . Terminals 4 | . 4 . . . Fabricators . | . . . . . Repair Stations . | . . . . . Recycling Units . | . . . . . Scanalyzers . | . . . . . Garrison Access . | . . . . . Terminal Hacks 5 | . 1 . 4 . Record 4 | . . . 4 . Part Schematic 1 | . 1 . . . Fabricator Hacks . | . . . . . Repair Station Hacks . | . . . . . Recycling Unit Hacks . | . . . . . Scanalyzer . | . . . . . Garrison Access Hacks . | . . . . . Unauthorized Hacks . | . . . . . Terminals . | . . . . . Fabricators . | . . . . . Repair Stations . | . . . . . Recycling Units . | . . . . . Scanalyzers . | . . . . . Garrison Access . | . . . . . Data Cores Recovered . | . . . . . Used . | . . . . . Hacking Detections 1 | . 1 . . . Full Trace Events 1 | . 1 . . . Feedback Events . | . . . . . Feedback Blocked . | . . . . . Robot Schematics Acquired . | . . . . . Robots Built . | . . . . . Authchips . | . . . . . Time . | . . . . . Total Robot Build Rating . | . . . . . Part Schematics Acquired 1 | . 1 . . . Parts Built . | . . . . . Authchips . | . . . . . Time . | . . . . . Total Part Build Rating . | . . . . . Part Studies Acquired . | . . . . . Parts Repaired . | . . . . . Time . | . . . . . Parts Recycled . | . . . . . Recycled Matter . | . . . . . Retrieved Matter . | . . . . . Retrieved Components . | . . . . . Parts Scanalyzed . | . . . . . Part Schematics Acquired . | . . . . . Parts Damaged . | . . . . . Bothacking | -11 -10 -10 -10 -9 ------------ Run | Yrd Mat Min Exi Min Used RIF Installer . | . . . . . Robots Hacked . | . . . . . Non-combat . | . . . . . Combat . | . . . . . Robot Hacks Applied . | . . . . . Relay Couplers Released . | . . . . . Fabnet Peak Effective % . | . . . . . Robots Rewired . | . . . . . Allies Hacked . | . . . . . Hacks Repelled . | . . . . . Allies | -11 -10 -10 -10 -9 -------- Run | Yrd Mat Min Exi Min Total Allies . | . . . . . Largest Group . | . . . . . Highest-Rated Group . | . . . . . Highest-Rated Ally . | . . . . . Total Orders . | . . . . . Ally Attacks . | . . . . . Total Damage . | . . . . . Kills . | . . . . . Allies Corrupted . | . . . . . Allies Melted . | . . . . . Intel | -11 -10 -10 -10 -9 ------- Run | Yrd Mat Min Exi Min Active Infowar (turns) . | . . . . . Robot Analysis Total . | . . . . . Derelict Logs Recovered 2 | . . 2 . . Drone Launches . | . . . . . Drone Recoveries . | . . . . . Exploration | -11 -10 -10 -10 -9 ------------- Run | Yrd Mat Min Exi Min Turns Passed 1807 | 75 265 924 498 45 Spaces Moved 1003 | 47 138 545 267 6 Core 11 | 11 . . . . Treads 992 | 36 138 545 267 6 Legs . | . . . . . Wheels . | . . . . . Hover . | . . . . . Flight . | . . . . . Fastest Speed 50 | 50 160 160 160 320 Average Speed 166 | 134 160 160 185 320 Slowest Speed 320 | 160 160 160 320 320 Overloaded Moves . | . . . . . Propulsion Burnouts . | . . . . . Robots Hopped . | . . . . . Potential Cave-ins . | . . . . . Cave-ins Triggered . | . . . . . Exploration Rate (%) 41 | 4 38 95 63 6 Regions Visited 4 Branch Regions 3 Pre-discovered Areas 1 | . . . 1 . Known Exits Taken . | . . . . . Unknown Exits Taken 4 | 1 1 1 1 . Scrap Searched 1 | . . 1 . . Spaces Dug . | . . . . . Terrain Destroyed 62 | . . . . 62 Melee . | . . . . . Projectile . | . . . . . AOE 62 | . . . . 62 Terrain Rammed . | . . . . . Walls Destroyed . | . . . . . Machines Disabled . | . . . . . Actions | -11 -10 -10 -10 -9 --------- Run | Yrd Mat Min Exi Min Total 1072 | 56 160 566 272 18 Wait 9 | . 9 . . . Move 999 | 46 137 544 266 6 Hop . | . . . . . Pick Up 11 | 4 2 3 2 . Fast Attach 7 | 6 1 . . . Attach . | . . . . . Detach . | . . . . . Swap 4 | . . 1 2 1 Drop 4 | . . 2 2 . Fire 38 | . 11 16 . 11 Melee . | . . . . . Ram . | . . . . . Kick . | . . . . . Crush . | . . . . . Escape Stasis . | . . . . . Rewire . | . . . . . Trap . | . . . . . Miscellaneous . | . . . . . Route ------- -11/Scrapyard -10/Materials -10/Mines (discovered 4 exits: [*Mat x2] / *Exi / [*Sub]) -10/Exiles -9/Mines History --------- Turn | Location | Event 4 | -11/Scrapyard | Discovered new exit (range 15) 76 | -11/Scrapyard | Entered Materials 306 | -10/Materials | Discovered new exit (range 13) 313 | -10/Materials | Build established: Mutant 341 | -10/Materials | Entered Mines 374 | -10/Mines | A weapon hastily lodged in a ceiling crevice suddenly fell to the ground 411 | -10/Mines | Received a Rocket Launcher from a helpful Derelict 661 | -10/Mines | Learned Materials emergency access door positions 690 | -10/Mines | Discovered new exit (range 15) 995 | -10/Mines | Discovered new exit (range 14) 1028 | -10/Mines | Discovered new exit (range 14) 1217 | -10/Mines | Learned Materials emergency access door positions 1258 | -10/Mines | Deemed a non-threat by the Exiles lab entrance 1258 | -10/Mines | Discovered new exit (range 5) 1265 | -10/Mines | Entered Exiles 1302 | -10/Exiles | Met 8R-AWN 1331 | -10/Exiles | Met EX-HEX 1376 | -10/Exiles | Met EX-BIN 1435 | -10/Exiles | Met EX-DEC 1443 | -10/Exiles | Learned location of Zion (-7) 1735 | -10/Exiles | Discovered new exit (range 10) 1763 | -10/Exiles | Entered Mines 1764 | -9/Mines | Assembled infested the area 1808 | -9/Mines | Self-destructed Last Messages --------------- 01790_ as-13445 destroyed. 01794_ as-93257 destroyed. 01794_ as-65657 destroyed. 01796_ as-91278 destroyed. 01802_ as-94057 destroyed. 01802_ as-29915 destroyed. 01803_ The unstable cave ceiling collapses. 01804_ as-43046 destroyed. 01804_ as-24069 destroyed. 01804_ Destroyed Asb. F-torch. 01804_ as-25714 destroyed. 01806_ The unstable cave ceiling collapses. 01806_ Lgt. Treads destroyed. 01806_ as-27708 destroyed. 01806_ as-47929 destroyed. 01806_ as-34805 destroyed. 01806_ Rocket Launcher destroyed. 01806_ Destroyed Rocket Launcher. 01807_ The unstable cave ceiling collapses. 01807_ Ion Engine destroyed. Map ----- +----------------------------------------------------+ | | | | | | | | | | | | | | | | | | | | | | | | | | | | | | | | | | | | | | | | | | | | | | | ??????????????????## ### #??????????????????? | | ?????????????????## #??????????????????? | | ?????????????????# @ #??????????????????? | | ?????????????????# %% #??????????????????? | | ?????????????????# #??????????????????? | | ?????????????????# #??????????????????? | | ?????????????????# #?????????????????? | | ???????????????? a ##?????????????????? | | ??????????????? #??????????????????? | | ?????????????? ??????????????????? | | ?????????????# a # ##?????????????????? | | ????????????? % # ##??????????????????? | | ???????????? ##???????????????????? | | ???????????